[Event "Championnat d'Europe Rapide"]
[Date "2024.12.08"]
[White "Schneider, Ilja"]
[Black "Sadiku, Bedri"]
[WhiteElo "2414"]
[BlackElo "2159"]
[Round "11.32"]
[Result "1-0"]
[TimeControl "900+10"]

1. e4 {[%emt 00:00:02] [%clk 00:15:18]} c5 {[%emt 00:00:14] [%clk 00:15:06]} 2.
Nc3 {[%emt 00:00:02] [%clk 00:15:26]} e6 {[%emt 00:00:03] [%clk 00:15:13]} 3.
Nf3 {[%emt 00:00:02] [%clk 00:15:35]} a6 {[%emt 00:00:05] [%clk 00:15:18]} 4. g3
{[%emt 00:00:01] [%clk 00:15:43]} b5 {[%emt 00:01:28] [%clk 00:14:00]} 5. Bg2
{[%emt 00:00:02] [%clk 00:15:51]} Bb7 {[%emt 00:00:01] [%clk 00:14:09]} 6. d4
{[%emt 00:00:03] [%clk 00:15:58]} b4 {[%emt 00:01:16] [%clk 00:13:03]} 7. Na4
{[%emt 00:00:02] [%clk 00:16:07]} c4 {[%emt 00:01:52] [%clk 00:11:21]} 8. Ne5
{[%emt 00:01:15] [%clk 00:15:01]} Qc7 {[%emt 00:01:28] [%clk 00:10:03]} 9. Qe2
{[%emt 00:00:02] [%clk 00:15:10]} c3 {[%emt 00:00:29] [%clk 00:09:44]} 10. bxc3
{[%emt 00:00:09] [%clk 00:15:11]} bxc3 {[%emt 00:00:02] [%clk 00:09:51]} 11. Rb1
{[%emt 00:01:05] [%clk 00:14:16]} Nc6 {[%emt 00:00:42] [%clk 00:09:20]} 12. Qc4
{[%emt 00:03:00] [%clk 00:11:26]} Rc8 {[%emt 00:01:12] [%clk 00:08:17]} 13. Nxc6
{[%emt 00:01:25] [%clk 00:10:11]} Bxc6 {[%emt 00:00:20] [%clk 00:08:07]} 14. Bf4
{[%emt 00:00:34] [%clk 00:09:46]} d6 {[%emt 00:03:00] [%clk 00:05:17]} 15. Nxc3
{[%emt 00:00:37] [%clk 00:09:20]} Qa5 {[%emt 00:00:37] [%clk 00:04:51]} 16. Bd2
{[%emt 00:00:18] [%clk 00:09:12]} Bd7 {[%emt 00:00:15] [%clk 00:04:45]} 17. Qd3
{[%emt 00:00:29] [%clk 00:08:53]} Nf6 {[%emt 00:02:04] [%clk 00:02:52]} 18. O-O
{[%emt 00:00:29] [%clk 00:08:34]} Qh5 {[%emt 00:00:26] [%clk 00:02:36]} 19. h3
{[%emt 00:01:07] [%clk 00:07:37]} Be7 {[%emt 00:01:00] [%clk 00:01:46]} 20. e5
{[%emt 00:00:13] [%clk 00:07:34]} dxe5 {[%emt 00:00:15] [%clk 00:01:41]} 21. g4
{[%emt 00:00:01] [%clk 00:07:43]} e4 {[%emt 00:00:26] [%clk 00:01:25]} 22. Nxe4
{[%emt 00:01:02] [%clk 00:06:52]} Qg6 {[%emt 00:00:03] [%clk 00:01:32]} 23.
Nxf6+ {[%emt 00:00:02] [%clk 00:06:59]} Bxf6 {[%emt 00:00:07] [%clk 00:01:35]}
24. Be4 {[%emt 00:00:01] [%clk 00:07:07]} Bc6 {[%emt 00:01:10] [%clk 00:00:36]}
25. Bxg6 {[%emt 00:00:18] [%clk 00:06:59]} hxg6 {[%emt 00:00:03] [%clk
00:00:43]} 26. Qxa6 {[%emt 00:00:27] [%clk 00:06:42]} O-O {[%emt 00:00:05] [%clk
00:00:48]} 27. c3 {[%emt 00:00:22] [%clk 00:06:30]} Be4 {[%emt 00:00:11] [%clk
00:00:47]} 28. Rfe1 {[%emt 00:00:11] [%clk 00:06:29]} Ra8 {[%emt 00:00:27] [%clk
00:00:29]} 29. Qe2 {[%emt 00:00:18] [%clk 00:06:21]} Bxb1 {[%emt 00:00:07] [%clk
00:00:33]} 30. Rxb1 {[%emt 00:00:01] [%clk 00:06:30]} Rxa2 {[%emt 00:00:03]
[%clk 00:00:40]} 31. Qd3 {[%emt 00:00:02] [%clk 00:06:39]} g5 {[%emt 00:00:06]
[%clk 00:00:44]} 32. Be3 {[%emt 00:00:04] [%clk 00:06:44]} Ra3 {[%emt 00:00:12]
[%clk 00:00:42]} 33. Rc1 {[%emt 00:00:02] [%clk 00:06:53]} Rc8 {[%emt 00:00:06]
[%clk 00:00:46]} 34. Kg2 {[%emt 00:00:02] [%clk 00:07:01]} Ra2 {[%emt 00:00:31]
[%clk 00:00:25]} 35. Qb5 {[%emt 00:00:08] [%clk 00:07:02]} Raa8 {[%emt 00:00:15]
[%clk 00:00:21]} 36. Rc2 {[%emt 00:00:43] [%clk 00:06:29]} Rab8 {[%emt 00:00:09]
[%clk 00:00:23]} 37. Qd3 {[%emt 00:00:06] [%clk 00:06:33]} Rb3 {[%emt 00:00:03]
[%clk 00:00:29]} 38. Qd2 {[%emt 00:00:08]} Rc4 {[%clk 00:00:34]} 39. Bxg5 {[%emt
00:00:06] [%clk 00:06:44]} 1-0

[Site "Europe Echecs"]

[Event "Championnat d'Europe Rapide"]
[Date "2024.12.08"]
[White "Fromm, Marius"]
[Black "Stankovic, Milos"]
[WhiteElo "2459"]
[BlackElo "2462"]
[Round "11.33"]
[Result "0-1"]
[TimeControl "900+10"]

1. e4 {[%emt 00:00:02] [%clk 00:15:17]} e6 {[%emt 00:00:03] [%clk 00:15:19]} 2.
d4 {[%clk 00:15:26]} d5 {[%clk 00:15:28]} 3. Nc3 {[%emt 00:00:02] [%clk
00:15:34]} Nf6 {[%emt 00:00:02] [%clk 00:15:35]} 4. e5 {[%emt 00:00:02] [%clk
00:15:43]} Nfd7 {[%emt 00:00:01] [%clk 00:15:44]} 5. f4 {[%emt 00:00:02] [%clk
00:15:50]} c5 {[%clk 00:15:53]} 6. Nf3 {[%emt 00:00:03] [%clk 00:15:59]} Nc6
{[%emt 00:00:04] [%clk 00:15:59]} 7. Be3 {[%emt 00:00:02] [%clk 00:16:07]} cxd4
{[%emt 00:00:24] [%clk 00:15:46]} 8. Nxd4 {[%emt 00:00:02] [%clk 00:16:14]} Bc5
{[%emt 00:00:01] [%clk 00:15:54]} 9. Qd2 {[%emt 00:00:07] [%clk 00:16:18]} O-O
{[%emt 00:00:04] [%clk 00:16:00]} 10. O-O-O {[%emt 00:00:10] [%clk 00:16:18]} a6
{[%emt 00:00:01] [%clk 00:16:08]} 11. Nb3 {[%emt 00:00:32] [%clk 00:15:56]} Be7
{[%emt 00:00:02] [%clk 00:16:16]} 12. Bd3 {[%emt 00:02:15] [%clk 00:13:51]} b5
{[%emt 00:00:19] [%clk 00:16:07]} 13. Qf2 {[%emt 00:00:29] [%clk 00:13:31]} Rb8
{[%emt 00:00:27] [%clk 00:15:51]} 14. h4 {[%emt 00:00:33] [%clk 00:13:08]} Nb6
{[%emt 00:00:48] [%clk 00:15:12]} 15. Rh3 {[%emt 00:04:33] [%clk 00:08:45]} Qc7
{[%emt 00:02:00] [%clk 00:13:21]} 16. g4 {[%emt 00:01:10] [%clk 00:07:46]} Bd7
{[%emt 00:02:48] [%clk 00:10:43]} 17. g5 {[%emt 00:00:15] [%clk 00:07:41]} Nc4
{[%emt 00:00:21] [%clk 00:10:33]} 18. Bc5 {[%emt 00:03:57] [%clk 00:03:54]} Rfc8
{[%emt 00:00:18] [%clk 00:10:25]} 19. h5 {[%emt 00:01:14] [%clk 00:02:50]} Be8
{[%emt 00:03:21] [%clk 00:07:14]} 20. g6 {[%emt 00:00:30] [%clk 00:02:29]} fxg6
{[%emt 00:00:24] [%clk 00:07:01]} 21. hxg6 {[%emt 00:00:20] [%clk 00:02:19]} h6
{[%emt 00:00:01] [%clk 00:07:09]} 22. Qh2 {[%emt 00:01:02] [%clk 00:01:28]} Bxc5
{[%emt 00:01:02] [%clk 00:06:17]} 23. Nxc5 {[%emt 00:00:01] [%clk 00:01:37]} Qe7
{[%emt 00:00:01] [%clk 00:06:26]} 24. Nxe6 {[%emt 00:01:10] [%clk 00:00:37]} Nb4
{[%emt 00:02:22] [%clk 00:04:13]} 25. Nxg7 {[%emt 00:00:23] [%clk 00:00:24]}
Nxd3+ {[%emt 00:00:31] [%clk 00:03:52]} 26. Rdxd3 {[%emt 00:00:10] [%clk
00:00:24]} Qxg7 {[%emt 00:02:31] [%clk 00:01:31]} 27. Rxh6 {[%emt 00:00:02]
[%clk 00:00:33]} Bxg6 {[%emt 00:01:00] [%clk 00:00:41]} 28. Rg3 {[%clk
00:00:42]} Rb6 {[%emt 00:00:09] [%clk 00:00:42]} 29. Nxd5 {[%emt 00:00:13] [%clk
00:00:39]} Nxe5 {[%emt 00:00:06] [%clk 00:00:46]} 30. Ne7+ {[%emt 00:00:37]
[%clk 00:00:13]} Qxe7 {[%emt 00:00:04] [%clk 00:00:52]} 31. Rh8+ {[%emt
00:00:08] [%clk 00:00:15]} Kf7 {[%emt 00:00:13] [%clk 00:00:48]} 32. Rxc8 {[%emt
00:00:09] [%clk 00:00:17]} Nc4 {[%emt 00:00:20] [%clk 00:00:38]} 33. Qf2 {[%emt
00:00:16] [%clk 00:00:12]} Re6 {[%emt 00:00:09] [%clk 00:00:39]} 34. Rg1 {[%emt
00:00:11] [%clk 00:00:11]} Re2 {[%emt 00:00:10] [%clk 00:00:38]} 35. Qd4 {[%emt
00:00:09] [%clk 00:00:11]} Rxc2+ {[%emt 00:00:05] [%clk 00:00:44]} 36. Kb1
{[%emt 00:00:09] [%clk 00:00:12]} Rxb2+ {[%emt 00:00:21] [%clk 00:00:33]} 37.
Ka1 {[%emt 00:00:10] [%clk 00:00:12]} Rxa2+ {[%emt 00:00:02] [%clk 00:00:41]}
38. Kxa2 {[%emt 00:00:02] [%clk 00:00:21]} Qa3# {[%emt 00:00:01] [%clk
00:00:49]} 0-1

[Site "Europe Echecs"]

[Event "Championnat d'Europe Rapide"]
[Date "2024.12.08"]
[White "Krallis, Christos"]
[Black "Alienkin, Aleksander"]
[WhiteElo "2383"]
[BlackElo "2337"]
[Round "11.34"]
[Result "1/2-1/2"]
[TimeControl "900+10"]

1. e4 {[%emt 00:00:02] [%clk 00:15:17]} e6 {[%emt 00:00:03] [%clk 00:15:18]} 2.
d4 {[%emt 00:00:06] [%clk 00:15:21]} d5 {[%emt 00:00:02] [%clk 00:15:26]} 3. Nc3
{[%emt 00:00:02] [%clk 00:15:28]} Nf6 {[%emt 00:00:05] [%clk 00:15:32]} 4. Bg5
{[%emt 00:00:05] [%clk 00:15:33]} dxe4 {[%emt 00:00:04] [%clk 00:15:39]} 5. Nxe4
{[%emt 00:00:04] [%clk 00:15:39]} Be7 {[%emt 00:00:02] [%clk 00:15:47]} 6. Nxf6+
{[%emt 00:00:21] [%clk 00:15:28]} gxf6 {[%emt 00:00:06] [%clk 00:15:51]} 7. Be3
{[%emt 00:00:14] [%clk 00:15:24]} Nd7 {[%emt 00:00:24] [%clk 00:15:38]} 8. Nf3
{[%emt 00:00:43] [%clk 00:14:50]} Nb6 {[%emt 00:01:10] [%clk 00:14:38]} 9. c4
{[%emt 00:00:24] [%clk 00:14:35]} Bd7 {[%emt 00:00:29] [%clk 00:14:20]} 10. Be2
{[%emt 00:00:53] [%clk 00:13:52]} Bc6 {[%emt 00:00:10] [%clk 00:14:20]} 11. O-O
{[%emt 00:00:31] [%clk 00:13:31]} Rg8 {[%emt 00:00:24] [%clk 00:14:06]} 12. a4
{[%emt 00:02:50] [%clk 00:10:51]} Bxf3 {[%emt 00:03:39] [%clk 00:10:37]} 13.
Bxf3 {[%emt 00:00:02] [%clk 00:10:59]} Nxc4 {[%emt 00:00:01] [%clk 00:10:46]}
14. Bxb7 {[%emt 00:00:19] [%clk 00:10:49]} Nxe3 {[%emt 00:00:09] [%clk
00:10:47]} 15. fxe3 {[%emt 00:00:17] [%clk 00:10:42]} Rb8 {[%emt 00:00:01] [%clk
00:10:55]} 16. Qf3 {[%emt 00:00:32] [%clk 00:10:20]} Qd6 {[%emt 00:01:14] [%clk
00:09:51]} 17. Rac1 {[%emt 00:01:08] [%clk 00:09:22]} Kf8 {[%emt 00:01:03] [%clk
00:08:58]} 18. a5 {[%emt 00:00:49] [%clk 00:08:43]} Rg5 {[%emt 00:01:25] [%clk
00:07:42]} 19. a6 {[%emt 00:00:26] [%clk 00:08:29]} Kg7 {[%emt 00:00:13] [%clk
00:07:38]} 20. Qf4 {[%emt 00:00:36] [%clk 00:08:02]} Bd8 {[%emt 00:02:16] [%clk
00:05:31]} 21. Rc6 {[%emt 00:02:34] [%clk 00:05:39]} Qxf4 {[%emt 00:00:49] [%clk
00:04:52]} 22. Rxf4 {[%emt 00:00:02] [%clk 00:05:47]} Rb5 {[%emt 00:00:13] [%clk
00:04:50]} 23. Rf2 {[%emt 00:00:08] [%clk 00:05:48]} Kf8 {[%emt 00:00:40] [%clk
00:04:20]} 24. Rfc2 {[%emt 00:00:29] [%clk 00:05:29]} Rb6 {[%emt 00:00:53] [%clk
00:03:37]} 25. R6c5 {[%emt 00:00:48] [%clk 00:04:51]} f5 {[%emt 00:00:11] [%clk
00:03:37]} 26. Kf2 {[%emt 00:00:15] [%clk 00:04:45]} Rb3 {[%emt 00:00:08] [%clk
00:03:39]} 27. Ke2 {[%emt 00:00:54] [%clk 00:04:01]} Ke8 {[%emt 00:00:37] [%clk
00:03:11]} 28. R5c3 {[%emt 00:01:22] [%clk 00:02:50]} Rxc3 {[%emt 00:00:10]
[%clk 00:03:12]} 29. bxc3 {[%emt 00:00:58] [%clk 00:02:03]} Kd7 {[%emt 00:00:33]
[%clk 00:02:48]} 30. Rb2 {[%emt 00:00:03] [%clk 00:02:11]} Kd6 {[%emt 00:00:04]
[%clk 00:02:54]} 31. c4 {[%emt 00:00:09] [%clk 00:02:13]} c5 {[%emt 00:00:11]
[%clk 00:02:52]} 32. Rb5 {[%emt 00:00:03] [%clk 00:02:20]} cxd4 {[%emt 00:00:11]
[%clk 00:02:52]} 33. exd4 {[%emt 00:00:04] [%clk 00:02:26]} Bf6 {[%emt 00:00:09]
[%clk 00:02:53]} 34. Kd3 {[%emt 00:00:30] [%clk 00:02:06]} Rg8 {[%emt 00:00:18]
[%clk 00:02:45]} 35. Bf3 {[%emt 00:00:09] [%clk 00:02:06]} Rc8 {[%emt 00:00:22]
[%clk 00:02:34]} 36. Rb7 {[%emt 00:01:10] [%clk 00:01:06]} Rc7 {[%emt 00:00:03]
[%clk 00:02:41]} 37. c5+ {[%emt 00:00:37] [%clk 00:00:39]} Kd7 {[%emt 00:00:03]
[%clk 00:02:47]} 38. Rxc7+ {[%emt 00:00:17] [%clk 00:00:32]} Kxc7 {[%emt
00:00:01] [%clk 00:02:55]} 39. Bh5 {[%emt 00:00:02] [%clk 00:00:41]} Be7 {[%emt
00:01:02] [%clk 00:02:03]} 40. Bxf7 {[%emt 00:00:18] [%clk 00:00:33]} e5 {[%emt
00:00:02] [%clk 00:02:11]} 41. Be8 {[%emt 00:00:21] [%clk 00:00:21]} exd4 {[%emt
00:00:22] [%clk 00:02:00]} 42. Kxd4 {[%emt 00:00:01] [%clk 00:00:30]} f4 {[%emt
00:00:42] [%clk 00:01:27]} 43. Kd5 {[%emt 00:00:15] [%clk 00:00:25]} Bh4 {[%emt
00:00:13] [%clk 00:01:24]} 44. Bc6 {[%emt 00:00:13] [%clk 00:00:22]} Bf2 {[%emt
00:00:06] [%clk 00:01:28]} 45. Bb7 {[%emt 00:00:05] [%clk 00:00:27]} Bg1 {[%emt
00:00:05] [%clk 00:01:32]} 46. h3 {[%emt 00:00:15] [%clk 00:00:23]} h5 {[%emt
00:00:51] [%clk 00:00:51]} 47. Kc4 {[%emt 00:00:16] [%clk 00:00:17]} h4 {[%emt
00:00:06] [%clk 00:00:55]} 48. Kb5 {[%emt 00:00:12] [%clk 00:00:15]} Bf2 {[%emt
00:00:05] [%clk 00:00:59]} 49. Kc4 {[%emt 00:00:02] [%clk 00:00:24]} Bg1 {[%emt
00:00:05] [%clk 00:01:04]} 50. Be4 {[%emt 00:00:11] [%clk 00:00:23]} Bf2 {[%emt
00:00:04] [%clk 00:01:09]} 51. c6 {[%emt 00:00:05] [%clk 00:00:30]} Be1 {[%emt
00:00:06] [%clk 00:01:11]} 52. Kd5 {[%emt 00:00:04] [%clk 00:00:37]} Bf2 {[%emt
00:00:05] [%clk 00:01:15]} 53. Ke5 {[%emt 00:00:09] [%clk 00:00:40]} Bg3 {[%emt
00:00:02] [%clk 00:01:23]} 54. Bf3 {[%emt 00:00:10] [%clk 00:00:40]} Bh2 {[%emt
00:00:04] [%clk 00:01:29]} 55. Kf5 {[%emt 00:00:06] [%clk 00:00:44]} Bg3 {[%emt
00:00:03] [%clk 00:01:36]} 56. Ke5 {[%emt 00:00:27] [%clk 00:00:27]} Bh2 {[%emt
00:00:04] [%clk 00:01:41]} 57. Kd4 {[%emt 00:00:10] [%clk 00:00:27]} Bg1+ {[%emt
00:00:07] [%clk 00:01:44]} 58. Kd3 {[%emt 00:00:02] [%clk 00:00:35]} Bf2 {[%emt
00:00:16] [%clk 00:01:37]} 59. Be4 {[%emt 00:00:16] [%clk 00:00:31]} Bg3 {[%emt
00:00:04] [%clk 00:01:42]} 60. Ke2 {[%emt 00:00:03] [%clk 00:00:38]} Kb6 {[%emt
00:00:08] [%clk 00:01:42]} 61. Kf3 {[%emt 00:00:11] [%clk 00:00:40]} Kc7 {[%emt
00:00:02] [%clk 00:01:50]} 62. Kg4 {[%emt 00:00:19] [%clk 00:00:31]} Kb6 {[%emt
00:00:05] [%clk 00:01:54]} 63. Kf5 {[%emt 00:00:09] [%clk 00:00:33]} Kc7 {[%emt
00:00:17] [%clk 00:01:47]} 64. Bf3 {[%emt 00:00:05] [%clk 00:00:37]} Kd6 {[%emt
00:00:07] [%clk 00:01:49]} 65. Kf6 {[%emt 00:00:07] [%clk 00:00:40]} Kc7 {[%emt
00:00:05] [%clk 00:01:54]} 66. Ke5 {[%emt 00:00:01] [%clk 00:00:49]} Bh2 {[%emt
00:00:04] [%clk 00:02:00]} 67. g4 {[%emt 00:00:38] [%clk 00:00:22]} fxg3 {[%emt
00:00:14] [%clk 00:01:56]} 68. Bg2 {[%clk 00:00:31]} Bg1 {[%emt 00:00:06] [%clk
00:02:00]} 69. Kf6 {[%emt 00:00:14] [%clk 00:00:27]} Bc5 {[%emt 00:00:05] [%clk
00:02:04]} 70. Kg5 {[%emt 00:00:09] [%clk 00:00:29]} Be7+ {[%emt 00:00:03] [%clk
00:02:11]} 71. Kh5 {[%emt 00:00:04] [%clk 00:00:35]} Bd8 {[%emt 00:00:10] [%clk
00:02:10]} 72. Kg4 {[%emt 00:00:14] [%clk 00:00:32]} Kb6 {[%emt 00:00:03] [%clk
00:02:16]} 73. Bf1 {[%emt 00:00:21] [%clk 00:00:22]} Kxc6 {[%emt 00:00:03] [%clk
00:02:24]} 74. Kf3 {[%clk 00:00:31]} Kc5 {[%emt 00:00:06] [%clk 00:02:28]} 75.
Kg2 {[%emt 00:00:02] [%clk 00:00:39]} Kd4 {[%emt 00:00:01] [%clk 00:02:37]} 76.
Be2 {[%emt 00:00:02] [%clk 00:00:47]} Ke3 {[%emt 00:00:01] [%clk 00:02:45]} 77.
Bf3 {[%emt 00:00:02] [%clk 00:00:55]} 1/2-1/2

[Site "Europe Echecs"]

[Event "Championnat d'Europe Rapide"]
[Date "2024.12.08"]
[White "Gaponenko, Inna"]
[Black "Saraci, Nderim"]
[WhiteElo "2343"]
[BlackElo "2431"]
[Round "11.35"]
[Result "1/2-1/2"]
[TimeControl "900+10"]

1. e4 {[%emt 00:00:28] [%clk 00:14:52]} c5 {[%emt 00:00:10] [%clk 00:15:10]} 2.
c3 {[%emt 00:00:02] [%clk 00:15:00]} Nf6 {[%emt 00:01:33] [%clk 00:13:47]} 3. e5
{[%emt 00:00:02] [%clk 00:15:08]} Nd5 {[%emt 00:00:02] [%clk 00:13:56]} 4. Nf3
{[%emt 00:00:01] [%clk 00:15:17]} Nc6 {[%emt 00:00:42] [%clk 00:13:24]} 5. d4
{[%emt 00:00:02] [%clk 00:15:25]} cxd4 {[%emt 00:00:06] [%clk 00:13:28]} 6. cxd4
{[%emt 00:00:01] [%clk 00:15:34]} d6 {[%emt 00:00:09] [%clk 00:13:29]} 7. Bc4
{[%emt 00:00:02] [%clk 00:15:42]} Nb6 {[%emt 00:01:24] [%clk 00:12:15]} 8. Bb5
{[%emt 00:00:01] [%clk 00:15:50]} dxe5 {[%emt 00:00:24] [%clk 00:12:01]} 9. Nxe5
{[%emt 00:00:02] [%clk 00:15:59]} Bd7 {[%emt 00:00:02] [%clk 00:12:09]} 10. Nc3
{[%emt 00:00:22] [%clk 00:15:47]} a6 {[%emt 00:01:08] [%clk 00:11:11]} 11. Bxc6
{[%emt 00:04:43] [%clk 00:11:14]} Bxc6 {[%emt 00:00:06] [%clk 00:11:15]} 12.
Nxc6 {[%emt 00:00:02] [%clk 00:11:22]} bxc6 {[%emt 00:00:02] [%clk 00:11:23]}
13. O-O {[%emt 00:00:12] [%clk 00:11:20]} e6 {[%emt 00:00:02] [%clk 00:11:30]}
14. Qg4 {[%emt 00:01:22] [%clk 00:10:08]} Nd5 {[%emt 00:00:27] [%clk 00:11:13]}
15. Rd1 {[%emt 00:00:32] [%clk 00:09:46]} Rb8 {[%emt 00:00:42] [%clk 00:10:41]}
16. h3 {[%emt 00:00:38] [%clk 00:09:19]} a5 {[%emt 00:02:47] [%clk 00:08:04]}
17. Bg5 {[%emt 00:00:53] [%clk 00:08:35]} Qd7 {[%emt 00:01:11] [%clk 00:07:03]}
18. Nxd5 {[%emt 00:01:22] [%clk 00:07:23]} Qxd5 {[%emt 00:00:47] [%clk
00:06:26]} 19. b3 {[%emt 00:00:03] [%clk 00:07:30]} Rb5 {[%emt 00:00:58] [%clk
00:05:38]} 20. Be3 {[%emt 00:03:28] [%clk 00:04:13]} h5 {[%emt 00:01:14] [%clk
00:04:33]} 21. Qg3 {[%emt 00:00:03] [%clk 00:04:20]} g5 {[%emt 00:00:15] [%clk
00:04:27]} 22. Rac1 {[%emt 00:00:08] [%clk 00:04:23]} Bd6 {[%emt 00:00:23] [%clk
00:04:14]} 23. Qf3 {[%emt 00:01:09] [%clk 00:03:24]} Qxf3 {[%emt 00:00:16] [%clk
00:04:08]} 24. gxf3 {[%clk 00:03:33]} Kd7 {[%emt 00:00:07] [%clk 00:04:11]} 25.
Rc4 {[%emt 00:00:01] [%clk 00:03:42]} f6 {[%emt 00:01:02] [%clk 00:03:18]} 26.
Rdc1 {[%emt 00:00:04] [%clk 00:03:49]} Rc8 {[%emt 00:00:02] [%clk 00:03:26]} 27.
Kf1 {[%emt 00:00:09] [%clk 00:03:50]} Bb4 {[%emt 00:01:36] [%clk 00:02:00]} 28.
Ke2 {[%emt 00:00:09] [%clk 00:03:51]} Rd5 {[%emt 00:00:25] [%clk 00:01:46]} 29.
Bd2 {[%emt 00:00:17] [%clk 00:03:44]} Bd6 {[%emt 00:00:52] [%clk 00:01:04]} 30.
Be3 {[%emt 00:00:31] [%clk 00:03:23]} Rb5 {[%emt 00:00:23] [%clk 00:00:51]} 31.
Kd3 {[%emt 00:00:17] [%clk 00:03:16]} Rc7 {[%emt 00:00:20] [%clk 00:00:42]} 32.
Ke2 {[%emt 00:00:17] [%clk 00:03:09]} Rb8 {[%emt 00:00:08] [%clk 00:00:43]} 33.
Bd2 {[%emt 00:00:19] [%clk 00:03:01]} Bb4 {[%emt 00:00:01] [%clk 00:00:52]} 34.
Be3 {[%emt 00:00:11] [%clk 00:03:00]} Ra8 {[%emt 00:00:13] [%clk 00:00:48]} 35.
R1c2 {[%emt 00:00:54] [%clk 00:02:17]} Ra6 {[%emt 00:00:03] [%clk 00:00:55]} 36.
Rc1 {[%emt 00:01:35] [%clk 00:00:52]} Rb7 {[%emt 00:00:01] [%clk 00:01:03]} 37.
R1c2 {[%emt 00:00:40] [%clk 00:00:22]} Kd6 {[%emt 00:00:33] [%clk 00:00:40]} 38.
Bd2 {[%emt 00:00:01] [%clk 00:00:31]} Bxd2 {[%emt 00:00:26] [%clk 00:00:24]} 39.
Kxd2 {[%emt 00:00:02] [%clk 00:00:40]} a4 {[%emt 00:00:08] [%clk 00:00:26]} 40.
b4 {[%emt 00:00:11] [%clk 00:00:38]} Rb5 {[%emt 00:00:04] [%clk 00:00:33]} 41.
a3 {[%emt 00:00:05] [%clk 00:00:43]} Rf5 {[%emt 00:00:02] [%clk 00:00:40]} 42.
Ke3 {[%emt 00:00:02] [%clk 00:00:51]} Rf4 {[%emt 00:00:05] [%clk 00:00:45]} 43.
Rc1 {[%emt 00:00:41] [%clk 00:00:20]} Rb6 {[%emt 00:00:03] [%clk 00:00:52]} 44.
Rc5 {[%emt 00:00:05] [%clk 00:00:26]} Rh4 {[%emt 00:00:05] [%clk 00:00:56]} 45.
Ra5 {[%emt 00:00:15] [%clk 00:00:21]} Rxh3 {[%emt 00:00:02] [%clk 00:01:03]} 46.
Ke2 {[%emt 00:00:09] [%clk 00:00:22]} g4 {[%emt 00:00:54] [%clk 00:00:20]} 47.
fxg4 {[%emt 00:00:02] [%clk 00:00:30]} hxg4 {[%emt 00:00:10] [%clk 00:00:20]}
48. Rxa4 {[%emt 00:00:02] [%clk 00:00:38]} Kd5 {[%emt 00:00:10] [%clk 00:00:20]}
49. Rc5+ {[%emt 00:00:23] [%clk 00:00:25]} Kxd4 {[%emt 00:00:14] [%clk
00:00:16]} 50. Rxc6 {[%emt 00:00:02] [%clk 00:00:33]} Rxa3 {[%emt 00:00:13]
[%clk 00:00:13]} 51. Rxb6 {[%emt 00:00:22] [%clk 00:00:21]} Rxa4 {[%emt
00:00:01] [%clk 00:00:22]} 52. Rxe6 {[%emt 00:00:01] [%clk 00:00:30]} f5 {[%emt
00:00:05] [%clk 00:00:27]} 53. b5 {[%emt 00:00:05] [%clk 00:00:35]} f4 {[%emt
00:00:06] [%clk 00:00:30]} 54. b6 {[%emt 00:00:29] [%clk 00:00:17]} Rb4 {[%emt
00:00:05] [%clk 00:00:34]} 55. Rg6 {[%emt 00:00:10] [%clk 00:00:18]} Rb2+ {[%emt
00:00:09] [%clk 00:00:35]} 56. Ke1 {[%emt 00:00:10] [%clk 00:00:18]} Kd3 {[%emt
00:00:17] [%clk 00:00:27]} 57. Rd6+ {[%emt 00:00:14] [%clk 00:00:14]} Ke4 {[%emt
00:00:03] [%clk 00:00:35]} 58. Kf1 {[%emt 00:00:05] [%clk 00:00:19]} Kf3 {[%emt
00:00:28] [%clk 00:00:17]} 59. Rd3+ {[%emt 00:00:01] [%clk 00:00:28]} Ke4 {[%clk
00:00:26]} 60. Rd6 {[%clk 00:00:37]} Ke5 {[%emt 00:00:15] [%clk 00:00:22]} 61.
Rg6 {[%emt 00:00:05] [%clk 00:00:42]} Kf5 {[%emt 00:00:09] [%clk 00:00:23]} 62.
Rc6 {[%emt 00:00:13] [%clk 00:00:38]} Kg5 {[%emt 00:00:03] [%clk 00:00:29]} 63.
Kg1 {[%emt 00:00:09] [%clk 00:00:40]} Rb1+ {[%emt 00:00:20] [%clk 00:00:19]} 64.
Kh2 {[%emt 00:00:02] [%clk 00:00:48]} Rb2 {[%emt 00:00:07] [%clk 00:00:22]} 65.
Kg1 {[%clk 00:00:57]} f3 {[%emt 00:00:08] [%clk 00:00:23]} 66. Rd6 {[%emt
00:00:47] [%clk 00:00:21]} Kf5 {[%emt 00:00:15] [%clk 00:00:18]} 67. Rc6 {[%emt
00:00:07] [%clk 00:00:25]} Rb1+ {[%emt 00:00:07] [%clk 00:00:20]} 68. Kh2 {[%clk
00:00:34]} Kf4 {[%emt 00:00:15] [%clk 00:00:16]} 69. Rc4+ {[%emt 00:00:03] [%clk
00:00:40]} Kg5 {[%emt 00:00:02] [%clk 00:00:24]} 70. Rc6 {[%emt 00:00:01] [%clk
00:00:49]} Rf1 {[%emt 00:00:11] [%clk 00:00:23]} 71. Rc2 {[%emt 00:00:01] [%clk
00:00:58]} Rb1 {[%emt 00:00:04] [%clk 00:00:28]} 72. Rc6 {[%emt 00:00:01] [%clk
00:01:07]} Kf4 {[%emt 00:00:18] [%clk 00:00:19]} 73. Rc4+ {[%emt 00:00:01] [%clk
00:01:16]} Kf5 {[%emt 00:00:08] [%clk 00:00:21]} 74. Rc6 {[%emt 00:00:07] [%clk
00:01:19]} Kf4 {[%emt 00:00:08] [%clk 00:00:24]} 75. Rc4+ {[%emt 00:00:01] [%clk
00:01:28]} 1/2-1/2

[Site "Europe Echecs"]